bitfinex/quotes_ETHUSD_20210401
["timestamp","ask_amount","ask_price","bid_price","bid_amount"]
[1617292613241,14.32865,1945.1,1944.6,0.38]
[1617292613439,12.72649,1944.9,1944.3,9.95327804]
[1617292613637,7.71649,1944.9,1944.3,9.95327804]
[1617292613838,7.71649,1944.9,1944.5,0.41]
[1617292614553,7.71649,1944.9,1944.4,3.85804]
[1617292614853,7.71649,1944.9,1944.4,4.24804]
[1617292615453,6.71649,1944.9,1944.4,4.24804]
[1617292615752,6.71649,1944.9,1944.6,0.41]
[1617292616559,7.1,1944.8,1944.4,3.26804]
[1617292617280,7.1,1944.8,1944.3,0.4]
[1617292617281,14.81692,1944.8,1944.3,0.4]
[1617292617482,14.22692,1944.8,1944.3,8.45]
[1617292617680,14.22692,1944.8,1944.3,8.86]
[1617292617681,7.71692,1944.8,1944.3,8.86]
[1617292618481,7.71692,1944.8,1944.5,0.41]
[1617292619185,7.71692,1944.8,1944.4,0.4]
[1617292620625,6.71692,1944.8,1944.4,0.4]
[1617292620826,5.01,1945.1,1944.5,0.4]
[1617292621029,5.01,1945.1,1944.8,0.39]
[1617292621229,12.0,1945.2,1944.9,2.20891236]
[1617292621431,12.0,1945.2,1944.9,3.40891236]
[1617292621628,11.0,1945.2,1945.0,7.7133]
[1617292621932,11.0,1945.2,1945.1,11.6578704]
[1617292622131,11.0,1945.2,1945.1,14.5578704]
[1617292622631,10.0,1945.2,1945.1,14.5578704]
[1617292622831,10.0,1945.2,1945.1,22.2710404]
[1617292623830,10.0,1945.2,1945.1,30.2710404]
[1617292624034,10.0,1945.2,1945.1,31.4710404]
[1617292625364,0.16887061,1945.6,1945.1,38.4710404]
[1617292625559,19.5709,1946.3,1945.3,1.2]
[1617292625761,19.5709,1946.3,1945.7,0.38]
[1617292625961,19.5709,1946.3,1946.1,0.39]
[1617292625962,5.01,1946.3,1946.1,0.39]
[1617292626266,0.53658074,1946.6,1946.1,11.88366022]
[1617292626468,0.32858582,1946.2,1946.1,11.88366022]
[1617292626669,7.09394869,1946.9,1946.5,0.38]
[1617292626865,1.0,1946.9,1946.5,9.173]
[1617292627484,1.0,1946.9,1946.6,5.35]
[1617292627485,0.15184712,1946.9,1946.6,5.35]
[1617292628288,0.15184712,1946.9,1946.5,9.173]
[1617292628487,0.54184712,1946.9,1946.5,8.793]
[1617292629808,0.39,1946.8,1946.5,8.793]
[1617292630207,0.15184712,1946.9,1946.5,8.743]
[1617292630406,0.39,1946.7,1946.5,8.743]
[1617292630606,0.14,1946.6,1946.5,8.743]
[1617292631507,4.972,1946.8,1946.5,8.743]
[1617292631709,5.112,1946.8,1946.5,8.743]
[1617292631908,5.012,1946.8,1946.4,1.2392]
[1617292632210,7.84992,1946.7,1946.2,0.4]
[1617292632454,0.14,1946.5,1945.9,3.47965674]
[1617292632653,7.24992,1946.7,1946.2,0.39]
[1617292632852,6.84992,1946.7,1946.2,0.39]
[1617292634055,7.23992,1946.7,1946.2,0.39]
[1617292634554,0.41,1946.6,1946.0,2.59326566]
[1617292634755,8.12035,1946.6,1946.0,2.59326566]
[1617292635359,4.872,1946.8,1946.4,0.39]
[1617292635559,4.872,1946.8,1946.4,2.57326566]
[1617292635759,4.872,1946.8,1946.4,0.39]
[1617292636363,4.872,1946.8,1946.1,2.2773346]
[1617292636560,4.872,1946.8,1946.2,0.38]
[1617292636760,4.872,1946.8,1946.1,2.6873346]
[1617292636761,0.4,1946.7,1946.1,2.6873346]
[1617292637166,0.4,1946.7,1946.1,5.4273346]
[1617292637361,0.15184712,1946.9,1946.2,0.39]
[1617292637683,0.42084712,1946.9,1946.3,0.38]
[1617292637881,0.01084712,1946.9,1946.5,0.41]
[1617292639087,0.01084712,1946.9,1946.3,3.94809894]
[1617292639386,0.01084712,1946.9,1946.5,0.4]
[1617292639785,0.01084712,1946.9,1946.5,0.41]
[1617292640333,0.01084712,1946.9,1946.4,0.39]
[1617292640736,0.39,1946.8,1946.3,6.77403]
[1617292642030,0.39,1946.8,1946.3,14.73231]
[1617292642234,0.39,1946.8,1946.3,3.81231]
[1617292642631,7.72000712,1946.9,1946.4,0.39]
[1617292642831,0.01084712,1946.9,1946.5,0.39]
[1617292643445,0.01084712,1946.9,1946.6,0.4]
[1617292644039,0.01084712,1946.9,1946.4,3.24809503]
[1617292644040,0.01084712,1946.9,1946.4,2.04809503]
[1617292644247,0.01084712,1946.9,1946.8,0.39]
[1617292644439,0.01084712,1946.9,1946.6,0.4]
[1617292645165,0.01084712,1946.9,1946.6,4.25351]
[1617292645362,0.01084712,1946.9,1946.8,27.04]
[1617292645596,2.73624147,1947.9,1946.9,24.3]
[1617292645793,1.53624147,1947.9,1947.5,0.39]
[1617292645995,1.53624147,1947.9,1947.6,0.39]
[1617292646194,1.53624147,1947.9,1947.3,0.6945]
[1617292646397,1.3339575,1947.6,1947.4,6.02597206]
[1617292646600,0.7839575,1947.6,1947.5,29.58]
[1617292646795,0.7839575,1947.6,1947.5,34.9]
[1617292646997,0.7839575,1947.6,1947.5,31.87559241]
[1617292647301,0.04138665,1948.0,1947.6,0.09406894]
[1617292647495,0.04138665,1948.0,1947.8,0.4]
[1617292647795,0.04138665,1948.0,1947.9,22.72183632]
[1617292648216,0.04138665,1948.0,1947.9,29.72183632]
[1617292648613,0.04138665,1948.0,1947.9,43.98183632]
[1617292648819,0.2,1948.3,1948.0,24.55]
[1617292649120,0.1,1948.3,1948.2,15.39]
[1617292649513,0.1,1948.3,1948.2,19.07]
[1617292649815,0.1,1948.3,1948.2,27.07]
[1617292650015,0.1,1948.3,1948.2,12.07]
[1617292650222,0.1,1948.3,1947.8,8.0]
[1617292650419,0.1,1948.3,1947.9,0.09406894]
[1617292650720,0.0692,1948.3,1947.9,0.41]
[1617292650917,0.0692,1948.3,1948.0,0.39]
[1617292651116,0.0692,1948.3,1947.8,0.09406894]
[1617292651319,0.75,1948.4,1947.8,0.09406894]
[1617292651518,0.75,1948.4,1947.7,4.39]
[1617292651519,0.0065479,1948.2,1947.7,4.39]
[1617292651819,0.0065479,1948.2,1947.7,4.0]
[1617292652118,0.38,1948.1,1947.7,4.0]
[1617292652518,0.4,1947.9,1947.7,4.0]
[1617292652727,0.4,1947.9,1947.4,0.09406894]
[1617292652728,7.70514,1947.8,1947.4,0.09406894]
[1617292653028,5.0165479,1948.2,1947.4,0.09406894]
[1617292653029,5.0165479,1948.2,1947.4,2.18062218]
[1617292653223,0.4065479,1948.2,1947.4,0.09406894]
[1617292653452,0.4065479,1948.2,1947.6,0.4]
[1617292653453,3.85201,1947.7,1947.6,0.4]
[1617292653649,3.85201,1947.7,1947.6,2.58062218]
[1617292653848,3.85201,1947.7,1947.6,3.78062218]
[1617292654550,3.85201,1947.7,1947.6,2.18062218]
[1617292654747,3.85201,1947.7,1947.5,4.0]
[1617292655050,3.85201,1947.7,1947.6,2.18062218]
[1617292655248,3.85201,1947.7,1947.5,5.61]
[1617292655549,2.85201,1947.7,1947.5,4.41]
[1617292655752,2.85201,1947.7,1947.6,7.0]
[1617292655953,2.85201,1947.7,1947.6,2.57972132]
[1617292656170,5.13569,1948.1,1947.6,2.57972132]
[1617292656373,3.85134,1947.9,1947.6,1.27257083]
[1617292656770,3.85134,1947.9,1947.6,5.67257083]
[1617292656970,3.85134,1947.9,1947.6,4.4]
[1617292657169,3.85134,1947.9,1947.7,2.17789878]
[1617292657772,3.85134,1947.9,1947.7,6.17789878]
[1617292657971,3.85134,1947.9,1947.7,4.0]
[1617292658376,3.85134,1947.9,1947.7,6.17789878]
[1617292658683,3.85134,1947.9,1947.7,4.0]
[1617292658886,10.33,1947.8,1947.7,4.0]
[1617292659085,19.2567,1947.8,1947.7,4.0]
[1617292659688,24.2667,1947.8,1947.0,24.07470613]
[1617292659891,24.2667,1947.8,1946.9,10.01960613]
[1617292659892,0.39,1947.4,1946.9,10.01960613]
[1617292660188,7.9573,1947.4,1947.0,3.6]
[1617292660488,7.5673,1947.4,1947.1,34.5]
[1617292660689,6.5673,1947.4,1947.1,34.5]
[1617292660992,3.85293,1947.3,1947.1,4.5]
[1617292661191,3.85293,1947.3,1947.0,0.39]
[1617292661434,3.85293,1947.3,1947.1,2.03293008]
[1617292661729,0.933,1947.5,1947.2,0.39]
[1617292662126,0.933,1947.5,1947.3,2.43401963]
[1617292662338,0.933,1947.5,1947.3,2.03401963]
[1617292662531,2.0905,1947.5,1947.0,2.03401983]
[1617292662728,2.0905,1947.5,1947.0,2.44401983]
[1617292662729,3.0591,1947.5,1947.0,2.44401983]
[1617292662928,3.0091,1947.5,1947.0,0.41]
[1617292663128,3.3991,1947.5,1947.0,7.70435]
[1617292663329,7.25116,1947.5,1947.0,7.70435]
[1617292663532,7.25116,1947.5,1946.9,4.77408092]
[1617292663729,0.39,1947.4,1946.9,4.77408092]
[1617292663940,0.4,1947.1,1946.9,2.12814986]
[1617292664140,9.3396,1947.3,1946.8,4.0]
[1617292664141,8.9496,1947.3,1946.8,4.0]
[1617292664343,9.3496,1947.3,1946.9,2.03128364]
[1617292664550,9.3496,1947.3,1946.8,5.2]
[1617292664551,9.3496,1947.3,1946.8,4.0]
[1617292664745,12.80227,1947.3,1946.9,2.03128243]
[1617292664946,12.80227,1947.3,1946.8,1.2]
[1617292665153,12.80227,1947.3,1947.1,0.4]
[1617292665355,8.9496,1947.3,1947.2,26.02233771]
[1617292665559,7.9496,1947.3,1947.2,30.27233771]
[1617292665757,13.0,1947.8,1947.4,5.01]
[1617292665946,13.0,1947.8,1947.5,3.41975912]
[1617292666150,13.0,1947.8,1947.7,20.35]
[1617292666346,13.0,1947.8,1947.7,24.59]
[1617292666763,13.0,1947.8,1947.7,23.39]
[1617292666960,13.0,1947.8,1947.7,27.39]
[1617292667161,13.0,1947.8,1947.7,28.59]
[1617292667461,13.41,1947.8,1947.7,7.04]
[1617292667862,13.0,1947.8,1947.7,7.04]
[1617292668069,13.0,1947.8,1947.7,4.0]
[1617292668272,13.0,1947.8,1947.7,0.97620111]
[1617292668465,13.0,1947.8,1947.4,1.2]
[1617292668466,13.41,1947.8,1947.5,0.97620111]
[1617292668669,0.4,1947.7,1947.5,0.97620111]
[1617292670088,0.38,1947.6,1947.1,8.58018111]
[1617292670289,0.39,1947.4,1947.1,8.58018111]
[1617292670489,3.85226,1947.5,1947.1,9.78018111]
[1617292670689,2.85226,1947.5,1947.2,2.22773518]
[1617292670890,2.85226,1947.5,1947.1,8.96018111]
[1617292671293,2.85226,1947.5,1947.1,10.16018111]
[1617292671591,2.85226,1947.5,1947.1,8.96018111]
[1617292671813,0.39,1947.4,1947.1,0.87620111]
[1617292672616,11.61,1947.2,1947.1,0.87620111]
[1617292673016,0.41,1947.2,1947.1,0.87620111]
[1617292674217,7.70664,1947.3,1947.1,0.87620111]
[1617292674739,9.39639605,1947.4,1947.1,0.87620111]
[1617292674940,0.4,1947.3,1947.1,0.87620111]
[1617292675173,9.38639605,1947.4,1946.9,1.01620566]
[1617292675373,9.38639605,1947.4,1946.8,0.87620111]
[1617292675574,8.38639605,1947.4,1946.8,1.26620111]
[1617292676278,8.38639605,1947.4,1946.8,3.98620111]
[1617292676481,0.39609605,1947.4,1946.8,1.26620111]
[1617292676676,3.85223,1947.3,1947.0,0.39]
[1617292677184,3.85223,1947.3,1947.1,8.58030111]
[1617292677685,3.85223,1947.3,1947.1,12.60030111]
[1617292677883,3.85223,1947.3,1947.1,11.40030111]
[1617292678184,3.85223,1947.3,1947.1,3.69620111]
[1617292678492,3.85223,1947.3,1947.1,0.87620111]
[1617292680086,4.24223,1947.3,1947.1,0.87620111]
[1617292680686,2.85223,1947.3,1947.1,0.87620111]
[1617292682316,2.85223,1947.3,1947.0,0.87620111]
[1617292682816,2.85223,1947.3,1947.0,8.58094111]
[1617292683213,0.00601144,1947.2,1947.0,8.58094111]
[1617292683414,0.00601144,1947.2,1947.0,0.87620111]
[1617292685538,1.85824144,1947.3,1947.0,0.87620111]
[1617292685739,1.85824144,1947.3,1947.0,1.28620111]
[1617292686742,1.85824144,1947.3,1947.0,8.99112111]
[1617292687242,1.85824144,1947.3,1947.0,0.87620111]
[1617292687440,5.71132144,1947.3,1947.0,0.87620111]
[1617292688567,0.38,1947.2,1947.0,0.87620111]
[1617292688972,0.39,1947.2,1947.0,0.87620111]
[1617292689269,0.39,1947.2,1946.6,0.97027005]
[1617292689566,0.39,1947.2,1946.6,1.28620111]
[1617292689765,0.39,1947.2,1946.6,1.38027005]
[1617292690065,0.39,1947.2,1946.6,1.28620111]
[1617292690321,3.85334,1947.0,1946.6,1.28620111]
[1617292690817,2.85334,1947.0,1946.8,0.39]
[1617292691519,2.85334,1947.0,1946.9,0.87620111]
[1617292692520,2.85334,1947.0,1946.9,1.15620111]
[1617292698090,2.99334,1947.0,1946.9,0.87620111]
[1617292698294,2.99334,1947.0,1946.9,1.15620111]
[1617292699193,2.85334,1947.0,1946.9,1.15620111]
[1617292699497,2.85334,1947.0,1946.9,0.87620111]
[1617292699693,2.99334,1947.0,1946.9,1.15620111]
[1617292700094,2.99334,1947.0,1946.9,6.45620111]
[1617292700594,2.99334,1947.0,1946.9,1.15620111]
[1617292701016,2.99334,1947.0,1946.9,0.87620111]
[1617292702617,2.99334,1947.0,1946.5,0.39]
[1617292702618,2.99334,1947.0,1946.6,0.87620111]
[1617292702918,0.14,1946.9,1946.7,0.588]
[1617292703117,0.14,1946.9,1946.6,0.87620111]
[1617292703118,0.14,1946.9,1946.8,0.112]
[1617292703344,0.14,1946.9,1946.8,6.473]
[1617292703649,0.14,1946.9,1946.8,1.14920111]
[1617292704445,0.14,1946.9,1946.8,0.87620111]
[1617292704648,2.85334,1947.0,1946.8,1.15620111]
[1617292704844,2.85334,1947.0,1946.8,1.20520111]
[1617292705744,2.99334,1947.0,1946.8,1.20520111]
[1617292706573,2.99334,1947.0,1946.8,1.15620111]
[1617292707676,2.99334,1947.0,1946.8,1.20520111]
[1617292708615,2.99334,1947.0,1946.8,0.87620111]
[1617292708616,8.75,1946.9,1946.8,0.87620111]
[1617292708815,8.89,1946.9,1946.8,0.87620111]
[1617292709019,0.14,1946.9,1946.8,0.87620111]
[1617292709819,3.68114,1947.0,1946.8,0.28]
[1617292709820,4.08114,1947.0,1946.8,0.28]
[1617292710016,11.52864,1947.0,1946.8,0.28]
[1617292710715,11.52864,1947.0,1946.9,0.87620111]
[1617292711015,11.38864,1947.0,1946.9,0.87620111]
[1617292711217,11.76864,1947.0,1946.9,0.87620111]
[1617292711617,11.38864,1947.0,1946.9,0.87620111]
[1617292712621,11.77864,1947.0,1946.9,0.87620111]
[1617292713843,11.38864,1947.0,1946.9,0.87620111]
[1617292714049,5.07814,1947.0,1946.6,0.87620111]
[1617292714244,7.70791,1946.9,1946.6,0.87620111]
[1617292715147,14.92716,1947.0,1946.6,0.87620111]
[1617292715148,12.84703,1946.8,1946.6,0.87620111]
[1617292715347,5.13861,1946.8,1946.6,0.87620111]
[1617292715546,4.63861,1946.8,1946.6,0.87620111]
[1617292716247,12.34716,1946.8,1946.6,0.87620111]
[1617292718681,2.2136049,1946.7,1946.6,0.87620111]
[1617292718875,21.1055036,1946.7,1946.6,0.87620111]
[1617292719094,21.1055036,1946.7,1946.4,0.87620111]
[1617292719298,18.8895459,1946.7,1946.4,0.87620111]
[1617292719497,18.8895459,1946.7,1946.1,1.0]
[1617292719498,0.38,1946.5,1946.1,1.0]
[1617292719702,2.21723546,1946.4,1946.1,1.0]
[1617292720002,9.92771546,1946.4,1946.1,1.0]
[1617292720220,31.81723546,1946.2,1945.4,0.4]
[1617292720415,0.39,1945.8,1945.3,1.22676105]
[1617292720614,9.98585198,1945.8,1945.1,1.0]
[1617292720914,7.3797,1945.8,1945.1,1.0]
[1617292721112,7.3797,1945.8,1945.1,8.0]
[1617292721313,11.57049,1945.7,1945.2,0.4]
[1617292721512,11.97049,1945.7,1945.1,0.95]
[1617292721725,0.4,1945.6,1945.1,0.95]
[1617292722327,7.71366,1945.7,1945.1,0.95]
[1617292722532,0.4,1945.6,1945.1,0.95]
[1617292723127,3.85659,1945.5,1945.1,0.95]
[1617292723329,3.85659,1945.5,1945.1,1.35]
[1617292723827,3.85659,1945.5,1945.2,5.01]
[1617292724027,3.85659,1945.5,1945.1,0.95]
[1617292724371,3.85659,1945.5,1945.1,5.96]
[1617292724575,3.85659,1945.5,1945.1,1.36]
[1617292724871,4.25659,1945.5,1945.1,0.95]
[1617292725474,0.41,1945.3,1945.1,0.95]
[1617292725675,3.85726,1945.4,1945.1,0.95]
[1617292726076,0.38,1945.3,1945.1,0.95]
[1617292726283,14.57615198,1945.2,1945.1,0.95]
[1617292726479,2.62615198,1945.2,1945.1,0.95]
[1617292726677,0.41,1945.2,1945.1,0.95]
[1617292727176,2.492,1945.2,1945.1,0.95]
[1617292727377,0.41,1945.2,1945.1,0.95]
[1617292728078,9.183,1945.3,1945.1,0.95]
[1617292728277,11.295,1945.3,1945.1,0.95]
[1617292728478,2.07,1945.2,1945.1,0.95]
[1617292728978,5.95659,1945.5,1945.1,7.15]
[1617292729179,16.5138,1945.8,1945.3,5.01]
[1617292729379,14.4318,1945.8,1945.3,5.01]
[1617292729600,2.124,1945.9,1945.3,5.01]
[1617292729800,12.85753,1946.4,1945.3,5.01]
[1617292729801,2.094,1946.1,1945.3,5.01]
[1617292730003,3.85559,1946.2,1945.4,0.09406894]
[1617292730205,4.23559,1946.2,1945.6,5.4]
[1617292730601,4.23559,1946.2,1945.7,5.01]
[1617292730802,4.23559,1946.2,1945.5,7.71094]
[1617292731003,0.4,1946.1,1945.5,7.71094]
[1617292731403,4.23559,1946.2,1945.5,8.12094]
[1617292731404,3.85535,1946.0,1945.5,8.12094]
[1617292732326,3.85535,1946.0,1945.5,0.41]
[1617292732528,3.85535,1946.0,1945.6,0.39]
[1617292732732,3.85535,1946.0,1945.9,0.39]
[1617292732930,2.214,1946.5,1946.0,2.62615198]
[1617292733228,19.46268,1946.6,1946.0,2.62615198]
[1617292733229,5.13998,1946.6,1946.0,5.42]
[1617292733430,5.13998,1946.6,1946.0,0.41]
[1617292733635,5.13998,1946.6,1946.0,5.34615198]
[1617292733828,3.8548,1946.3,1946.0,5.34615198]
[1617292734030,3.8548,1946.3,1946.0,4.93615198]
[1617292734230,3.8548,1946.3,1946.0,2.72]
[1617292734430,4.2448,1946.3,1945.9,5.01]
[1617292735256,4.2448,1946.3,1945.8,2.21615198]
[1617292735452,4.2448,1946.3,1945.7,0.38]
[1617292735653,4.2448,1946.3,1945.5,0.50406894]
[1617292735654,0.41,1946.0,1945.5,0.50406894]
[1617292735854,0.41,1946.0,1945.5,0.41]
[1617292736456,8.12221,1946.0,1945.5,0.39]
[1617292736654,10.28294,1946.2,1945.5,0.39]
[1617292736856,3.8557,1946.1,1945.6,0.38]
[1617292737252,3.85622,1945.9,1945.6,0.38]
[1617292737506,3.85622,1945.9,1945.7,2.59615198]
[1617292737707,3.85622,1945.9,1945.7,5.39]
[1617292738107,6.04947479,1946.5,1945.7,5.39]
[1617292738315,6.04947479,1946.5,1946.0,0.41]
[1617292738508,3.85515,1946.1,1946.0,0.41]
[1617292738714,3.85515,1946.1,1945.8,2.21615198]
[1617292739008,3.85515,1946.1,1945.9,0.39]
[1617292739508,3.85515,1946.1,1945.9,7.70949]
[1617292739708,3.85515,1946.1,1945.6,5.01]
[1617292739908,6.0113,1946.4,1945.5,10.28003]
[1617292739909,0.4,1946.0,1945.5,5.01]
[1617292740108,0.4,1946.0,1945.5,2.21615198]
[1617292740109,5.4,1946.0,1945.5,2.21615198]
[1617292740312,5.4,1946.0,1945.4,2.61615198]
[1617292740313,5.0,1946.0,1945.4,2.61615198]
[1617292740512,5.0,1946.0,1945.4,0.09406894]
[1617292740907,5.4,1946.0,1945.4,0.09406894]
[1617292741108,13.11224,1946.0,1945.4,0.09406894]
[1617292741311,10.91628,1945.9,1945.3,10.67093]
[1617292741510,10.91628,1945.9,1945.2,0.4]
[1617292741511,11.30628,1945.9,1945.2,0.4]
[1617292741709,0.38,1945.7,1945.0,14.9197]
[1617292741909,0.39,1945.6,1945.1,11.32598894]
[1617292742111,0.39,1945.6,1945.1,11.23192]
[1617292742314,6.05259059,1945.6,1945.1,0.95]
[1617292742510,3.85689,1945.5,1945.1,0.95]
[1617292743134,5.94489,1945.5,1945.1,5.96]
[1617292743331,3.85689,1945.5,1945.1,0.95]
[1617292743530,4.25689,1945.5,1945.1,0.95]
[1617292743730,4.25689,1945.5,1945.1,0.9]
[1617292744232,3.85689,1945.5,1945.1,3.11615198]
[1617292744731,3.85689,1945.5,1945.1,0.9]
[1617292745559,3.85689,1945.5,1945.2,9.92831198]
[1617292745756,3.85689,1945.5,1945.2,7.71216]
[1617292745953,3.85689,1945.5,1945.2,13.11216]
[1617292747053,5.53236,1945.7,1945.2,13.11216]
[1617292747054,2.496,1945.7,1945.2,13.11216]
[1617292747253,2.508,1945.7,1945.2,13.11216]
[1617292747755,6.0942,1945.9,1945.2,13.11216]
[1617292747975,6.0942,1945.9,1945.2,5.01]
[1617292747976,8.10303,1945.8,1945.2,5.01]
[1617292748176,8.10303,1945.8,1945.1,0.9]
[1617292748177,0.38,1945.7,1945.1,0.9]
[1617292748386,0.4,1945.5,1945.1,0.9]
[1617292748578,2.03754509,1945.4,1945.1,0.9]
[1617292748777,18.89,1945.2,1945.1,0.9]
[1617292749479,14.85,1945.1,1944.2,0.09406894]
[1617292749680,3.85844,1944.7,1944.2,2.10329649]
[1617292749879,3.85844,1944.7,1944.2,0.38]
[1617292750078,10.64344,1944.7,1944.2,0.38]
[1617292750483,10.64344,1944.7,1944.4,0.4]
[1617292750903,10.64344,1944.7,1944.2,0.41]
[1617292751303,3.85844,1944.5,1944.2,0.41]
[1617292751503,3.85844,1944.5,1944.1,8.71639]
[1617292751699,3.85844,1944.5,1944.1,9.09639]
[1617292752303,4.24844,1944.5,1944.1,9.09639]
[1617292752505,4.24844,1944.5,1944.1,13.72639]
[1617292753004,0.38,1944.8,1944.1,14.13639]
[1617292753451,0.38,1944.8,1944.3,5.01]
[1617292753650,5.53458,1944.9,1944.3,5.01]
[1617292753849,5.53458,1944.9,1944.3,5.41]
[1617292754048,5.53458,1944.9,1944.3,0.4]
[1617292754247,3.85794,1944.8,1944.3,0.4]
[1617292754647,3.85794,1944.8,1944.3,8.11571]
[1617292754847,0.39,1944.7,1944.2,5.01]
[1617292755048,0.4,1944.5,1944.1,6.01]
[1617292755248,0.4,1944.5,1944.1,1.0]
[1617292755249,4.25895,1944.5,1944.1,1.0]
[1617292755853,5.9175438,1944.4,1944.1,1.0]
[1617292756055,8.3295438,1944.4,1944.1,1.0]
[1617292756553,2.684,1944.3,1944.1,1.0]
[1617292756752,4.98807642,1944.3,1944.1,1.0]
[1617292756953,8.08,1944.2,1944.1,1.0]
[1617292757555,2.558,1944.2,1944.1,1.0]
[1617292757954,2.166,1944.2,1944.1,1.0]
[1617292758155,2.62,1944.3,1944.1,1.0]
[1617292758356,2.764,1944.3,1944.1,1.0]
[1617292758590,0.39,1944.2,1944.1,1.0]
[1617292758987,2.784,1944.2,1944.1,1.0]
[1617292759289,2.286,1944.3,1944.1,1.0]
[1617292759689,2.226,1944.3,1944.1,1.0]
[1617292759988,2.184,1944.3,1944.1,1.0]
[1617292760189,2.232,1944.3,1944.1,1.0]
[1617292760789,2.082,1944.3,1944.1,1.0]
[1617292761234,5.97115,1944.4,1944.1,1.0]
[1617292761532,2.106,1944.3,1944.1,1.0]
[1617292761733,2.094,1944.3,1944.1,1.0]
[1617292762232,2.07,1944.3,1944.1,1.0]
[1617292762433,7.63,1944.2,1944.1,1.0]
[1617292763035,9.784,1944.2,1944.1,1.0]
[1617292763237,9.82,1944.2,1944.1,1.0]
[1617292763635,9.808,1944.2,1944.1,1.0]
[1617292763844,2.558,1944.2,1944.1,1.0]
[1617292764038,2.552,1944.2,1944.1,1.0]
[1617292764238,0.38,1944.2,1944.1,1.0]
[1617292764738,4.32607642,1944.3,1944.1,1.0]
[1617292764940,4.70807642,1944.3,1944.1,1.0]
[1617292765141,2.07,1944.3,1944.1,1.0]
[1617292765549,3.85915,1944.4,1944.1,1.0]
[1617292765946,4.25915,1944.4,1944.1,1.0]
[1617292766150,3.85915,1944.4,1944.1,2.04181347]
[1617292766385,3.85915,1944.4,1944.3,0.4]
[1617292767081,3.85915,1944.4,1944.1,1.0]
[1617292767281,3.85915,1944.4,1944.2,0.39]
[1617292767982,3.85915,1944.4,1944.1,1.0]
[1617292768181,3.85915,1944.4,1944.1,1.4]
[1617292769702,3.85915,1944.4,1944.1,1.0]
[1617292771005,0.39,1944.3,1944.1,1.0]
[1617292771204,2.60407642,1944.3,1944.1,1.0]
[1617292771408,6.08715,1944.4,1944.1,1.69]
[1617292771605,3.99915,1944.4,1944.1,1.336]
[1617292771806,3.85915,1944.4,1944.1,1.336]
[1617292772008,3.99915,1944.4,1944.1,1.336]
[1617292772707,3.99915,1944.4,1944.1,1.28]
[1617292772907,3.99915,1944.4,1944.1,1.0]
[1617292773507,3.99915,1944.4,1944.1,1.336]
[1617292773707,3.99915,1944.4,1944.1,1.0]
[1617292773910,1.99915,1944.4,1944.1,1.0]
[1617292774231,1.99915,1944.4,1944.1,1.315]
[1617292774832,0.38,1944.3,1944.1,1.0]
[1617292775032,0.52,1944.3,1944.1,1.0]
[1617292775931,2.252,1944.3,1944.1,1.0]
[1617292776132,2.258,1944.3,1944.1,1.0]
[1617292776540,2.66,1944.3,1944.1,1.0]
[1617292776734,2.606,1944.3,1944.1,1.0]
[1617292777162,2.612,1944.3,1944.1,1.0]
[1617292777363,0.14,1944.3,1944.1,1.0]
[1617292778264,7.85888,1944.3,1944.1,1.0]
[1617292779678,8.25888,1944.3,1944.1,1.0]
[1617292780080,10.33488,1944.3,1944.1,1.0]
[1617292780481,9.81888,1944.3,1944.1,1.67]
[1617292780688,7.71888,1944.3,1944.1,1.0]
[1617292780882,7.97058,1944.4,1944.1,1.0]
[1617292781083,5.85858,1944.4,1944.1,1.0]
[1617292781884,6.23858,1944.4,1944.1,1.0]
[1617292782505,13.95674,1944.4,1944.1,1.0]
[1617292782804,5.85858,1944.4,1944.2,0.41]
[1617292783205,5.71858,1944.4,1944.2,0.732]
[1617292783413,5.71858,1944.4,1944.2,2.95498374]
[1617292783609,5.71858,1944.4,1944.2,0.732]
[1617292784213,5.71858,1944.4,1944.1,8.71711]
[1617292784411,5.71858,1944.4,1944.1,9.39711]
[1617292784608,5.71858,1944.4,1944.1,9.11711]
[1617292784862,5.71858,1944.4,1944.1,1.0]
[1617292785263,5.71858,1944.4,1944.2,0.343]
[1617292787265,5.71858,1944.4,1944.2,0.28]
[1617292788267,5.71858,1944.4,1944.1,9.10728]
[1617292788567,5.71858,1944.4,1944.1,1.0]
[1617292788568,17.15108,1944.4,1944.1,1.0]
[1617292788766,17.29108,1944.4,1944.1,1.69]
[1617292789068,17.29108,1944.4,1944.1,1.0]
[1617292789471,25.00927,1944.4,1944.1,1.28]
[1617292789766,24.95727,1944.4,1944.1,1.28]
[1617292790682,17.23908,1944.4,1944.1,1.28]
[1617292791484,9.7769798,1944.3,1944.1,1.28]
[1617292791688,11.9129798,1944.3,1944.1,1.28]
[1617292791989,11.8829798,1944.3,1944.1,1.0]
[1617292792182,11.8769798,1944.3,1944.1,1.0]
[1617292792381,4.1583898,1944.3,1944.1,1.0]
[1617292792609,2.142,1944.2,1944.1,1.0]
[1617292792909,10.28884,1944.2,1944.1,1.0]